lending/lending_fUSD_20250218
["ID","MTS","AMOUNT","RATE_DAILY","PERIOD"]
[353493733,1739881842608,-500.0,0.0002006,3]
[353493734,1739881842618,-500.0,0.0002006,3]
[353493735,1739881842627,-500.0,0.0002006,3]
[353493736,1739881842637,-503.60852105,0.0002006,3]
[353493737,1739881842646,-500.0,0.0002006,3]
[353493738,1739881842656,-500.0,0.0002006,3]
[353493739,1739881842666,-500.0,0.0002006,3]
[353493740,1739881842675,-500.0,0.0002006,3]
[353493741,1739881842684,-500.0,0.0002006,3]
[353493742,1739881842693,-500.0,0.0002006,3]
[353493743,1739881842703,-500.0,0.0002006,3]
[353493744,1739881842712,-500.0,0.0002006,3]
[353493745,1739881842722,-500.0,0.0002006,3]
[353493746,1739881842731,-500.0,0.0002006,3]
[353493747,1739881842740,-500.0,0.0002006,3]
[353493748,1739881842749,-500.0,0.0002006,3]
[353493749,1739881842759,-503.18270127,0.0002006,3]
[353493750,1739881842768,-500.0,0.0002006,3]
[353493751,1739881842778,-224.89357772,0.0002006,3]
[353493752,1739881842787,-500.0,0.0002006,3]
[353493753,1739881842797,-503.61678661,0.0002006,3]
[353493754,1739881842806,-503.83201734,0.0002006,3]
[353493755,1739881842817,-502.06473886,0.0002006,3]
[353493756,1739881842827,-500.0,0.0002006,3]
[353493757,1739881842837,-500.0,0.0002006,3]
[353493758,1739881842847,-500.0,0.0002006,3]
[353493759,1739881842856,-504.2675551,0.0002006,3]
[353493760,1739881842866,-502.18404574,0.0002006,3]
[353493761,1739881842876,-502.55113717,0.0002006,3]
[353493762,1739881842886,-500.0,0.0002006,3]
[353493763,1739881842895,-500.0,0.0002006,3]
[353493764,1739881842905,-504.13826468,0.0002006,3]
[353493766,1739881842915,-503.88577645,0.0002006,3]
[353493768,1739881842924,-506.30428105,0.0002006,3]
[353493770,1739881842934,-500.0,0.0002006,3]
[353493772,1739881842943,-500.0,0.0002006,3]
[353493774,1739881842952,-500.0,0.0002006,3]
[353493776,1739881842962,-503.57025285,0.0002006,3]
[353493777,1739881842971,-500.0,0.0002006,3]
[353493779,1739881842981,-507.01485545,0.0002006,3]
[353493781,1739881842990,-500.0,0.0002006,3]
[353493783,1739881843000,-500.0,0.0002006,3]
[353493786,1739881843010,-500.0,0.0002006,3]
[353493787,1739881843020,-500.0,0.0002006,3]
[353493790,1739881843031,-513.06491108,0.0002006,3]
[353493791,1739881843041,-500.0,0.0002006,3]
[353493793,1739881843051,-502.23216969,0.0002006,3]
[353493796,1739881843061,-500.0,0.0002006,3]
[353493797,1739881843073,-501.83688216,0.0002006,3]
[353493799,1739881843085,-500.0,0.0002006,3]
[353493801,1739881843094,-500.0,0.0002006,3]
[353493803,1739881843104,-500.0,0.0002006,3]
[353493805,1739881843114,-500.0,0.0002006,3]
[353493807,1739881843124,-500.0,0.0002006,3]
[353493823,1739881843255,-512.03497736,0.0002006,3]
[353493826,1739881843284,-500.0,0.0002006,3]
[353493828,1739881843293,-500.0,0.0002006,3]
[353493830,1739881843302,-259.67784432,0.0002006,3]
[353493832,1739881843311,-500.0,0.0002006,3]
[353493834,1739881843320,-500.0,0.0002006,3]
[353493836,1739881843331,-500.0,0.0002006,3]
[353493837,1739881843340,-500.0,0.0002006,3]
[353493838,1739881843350,-500.0,0.0002006,3]
[353493839,1739881843359,-500.0,0.0002006,3]
[353493840,1739881843368,-481.94952308,0.0002006,3]
[353493841,1739881843378,-500.0,0.0002006,3]
[353493842,1739881843387,-500.0,0.0002006,3]
[353493843,1739881843397,-494.98363924,0.0002006,3]
[353493844,1739881843406,-500.0,0.0002006,3]
[353493845,1739881843416,-500.0,0.0002006,3]
[353493846,1739881843426,-500.0,0.0002006,3]
[353493848,1739881843435,-500.0,0.0002006,3]
[353493850,1739881843445,-500.0,0.0002006,3]
[353493852,1739881843455,-500.0,0.0002006,3]
[353493854,1739881843464,-500.0,0.0002006,3]
[353493856,1739881843474,-500.0,0.0002006,3]
[353493858,1739881843483,-503.36174568,0.0002006,3]
[353493860,1739881843492,-193.78267535,0.0002006,3]
[353493862,1739881843502,-513.22353374,0.0002006,3]
[353493864,1739881843512,-500.0,0.0002006,3]
[353493866,1739881843522,-500.0,0.0002006,3]
[353493868,1739881843531,-500.0,0.0002006,3]
[353493870,1739881843540,-500.0,0.0002006,3]
[353493872,1739881843550,-500.0,0.0002006,3]
[353493874,1739881843559,-500.0,0.0002006,3]
[353493876,1739881843569,-500.0,0.0002006,3]
[353493878,1739881843579,-500.0,0.0002006,3]
[353493880,1739881843588,-2000.0,0.0002006,2]
[353493882,1739881843598,-47004.6065,0.00020061,2]
[353493884,1739881843607,-221.0,0.00020061,2]
[353493886,1739881843617,-29001.4282,0.00020061,2]
[353493888,1739881843626,-1000.0,0.00020061,2]
[353493890,1739881843635,-167.92376665,0.00020073,2]
[353493892,1739881843644,-354.21322661,0.00020073,2]
[353493894,1739881843653,-47173.36690547,0.00020073,2]
[353493896,1739881843662,-8777.09969282,0.00020073,2]
[353493898,1739881843671,-785.65278588,0.00020073,2]
[353493900,1739881843680,-504.12052031,0.00020073,2]
[353493902,1739881843690,-12500.0,0.0002008,2]
[353493904,1739881843699,-159.0,0.000201,2]
[353493906,1739881843708,-10000.0,0.00020107,2]
[353493908,1739881843717,-12500.0,0.0002012,2]
[353493910,1739881843727,-352.06667053,0.00020121,3]
[353493912,1739881843736,-500.0,0.00020121,3]
[353493914,1739881843747,-500.0,0.00020121,3]
[353493916,1739881843757,-500.0,0.00020121,3]
[353493918,1739881843766,-500.0,0.00020121,3]
[353493920,1739881843775,-500.0,0.00020121,3]
[353493922,1739881843785,-500.0,0.00020141,3]
[353493924,1739881843794,-214.53,0.00020141,3]
[353493926,1739881843803,-500.0,0.00020141,3]
[353493928,1739881843812,-500.0,0.00020141,3]
[353493930,1739881843821,-485.15,0.00020141,3]
[353493931,1739881843832,-529.92,0.00020141,3]
[353493933,1739881843841,-522.13,0.00020141,3]
[353493936,1739881843851,-500.0,0.00020141,3]
[353493938,1739881843861,-500.0,0.00020141,3]
[353493940,1739881843871,-179.12,0.00020141,3]
[353493942,1739881843881,-318.29,0.00020141,3]
[353493944,1739881843890,-500.0,0.00020143,3]
[353493946,1739881843899,-500.0,0.00020143,3]
[353493948,1739881843909,-500.0,0.00020143,3]
[353493950,1739881843918,-500.0,0.00020143,3]
[353493952,1739881843928,-500.0,0.00020143,3]
[353493953,1739881843937,-505.4168352,0.00020143,3]
[353493956,1739881843947,-500.0,0.00020143,3]
[353493958,1739881843956,-500.0,0.00020143,3]
[353493960,1739881843965,-500.0,0.00020143,3]
[353493962,1739881843975,-294.93,0.00020143,3]
[353493964,1739881843985,-552.40399881,0.0002015,2]
[353493966,1739881843995,-351.1493581,0.00020151,2]
[353493968,1739881844004,-351.1493581,0.00020151,2]
[353493970,1739881844017,-351.1493581,0.00020151,2]
[353493972,1739881844028,-351.1493581,0.00020151,2]
[353493973,1739881844037,-351.1493581,0.00020151,2]
[353493976,1739881844047,-351.1493581,0.00020151,2]
[353493977,1739881844056,-168.6955577,0.00020151,2]
[353493979,1739881844066,-168.6955577,0.00020151,2]
[353493982,1739881844079,-168.6955577,0.00020151,2]
[353493984,1739881844088,-168.6955577,0.00020151,2]
[353493986,1739881844098,-400.98441129,0.00020159,3]
[353493988,1739881844118,-206.0,0.0002016,2]
[353493989,1739881844129,-205.0,0.0002016,2]
[353493992,1739881844138,-8075.15,0.0002016,2]
[353493993,1739881844149,-500.0,0.00020161,2]
[353493995,1739881844158,-1060.0,0.00020161,2]
[353493997,1739881844168,-3143.49526,0.00020161,2]
[353494000,1739881844178,-981.0,0.00020161,2]
[353494002,1739881844188,-73663.29579388,0.00020161,2]
[353494004,1739881844197,-73663.29579388,0.00020161,2]
[353494006,1739881844207,-50000.0,0.00020163,17]
[353494008,1739881844216,-50000.0,0.00020163,19]
[353494010,1739881844226,-50000.0,0.00020163,21]
[353494012,1739881844235,-50000.0,0.00020163,23]
[353494014,1739881844244,-321.76451709,0.00020163,2]
[353494016,1739881844253,-321.76451709,0.00020163,2]
[353494018,1739881844263,-150.0,0.00020164,4]
[353494020,1739881844272,-500.0,0.00020172,2]
[353494022,1739881844282,-1425.39,0.00020172,2]
[353494024,1739881844292,-50000.0,0.00020172,15]
[353494026,1739881844301,-500.0,0.00020173,2]
[353494028,1739881844310,-191308.83569586,0.00020173,3]
[353494030,1739881844320,-258.450649,0.00020173,2]
[353494032,1739881844331,-4017634.6401991,0.00020173,40]
[353494043,1739881844434,-41924.54176504,0.00020173,40]
[353494046,1739881844450,-168.6955577,0.00020151,2]
[353494048,1739881844460,-1774.77096429,0.00020173,40]
[353494062,1739881844582,-150.0,0.00016943,2]
[353494064,1739881844591,-150.0,0.00017304,2]
[353494066,1739881844600,-150.0,0.00017664,2]
[353494068,1739881844609,-150.0,0.00018025,2]
[353494069,1739881844618,-473.56,0.00018162,2]
[353494071,1739881844628,-150.0,0.00018385,2]
[353494074,1739881844637,-150.0,0.00018746,2]
[353494075,1739881844646,-168.6955577,0.00020151,2]
[353494078,1739881844655,-294.39234908,0.00020173,3]
[353494080,1739881844665,-10838.29209578,0.00020173,40]
[353494082,1739881844676,-9878.62767785,0.00020173,40]
[353494084,1739881844691,-1177.84900829,0.00020173,40]
[353494086,1739881844702,-751.6,0.00020173,40]
[353494089,1739881844717,-530.69259837,0.00020173,40]
[353494091,1739881844729,-10241.20171226,0.00020173,40]
[353494094,1739881844744,-6745.56485622,0.00020173,40]
[353494096,1739881844755,-4815.976,0.00020173,40]
[353494098,1739881844766,-35639.53797251,0.00020173,40]
[353494101,1739881844778,-2407.15091,0.00020173,40]
[353494104,1739881844798,-150.0,0.00019106,2]
[353494106,1739881844807,-201868.86845898,0.00020173,40]
[353494108,1739881844818,-3189.32274071,0.00020173,40]
[353494110,1739881844830,-418.54789703,0.00020173,40]
[353494112,1739881844842,-270.00005,0.00020173,40]
[353494120,1739881844902,-150.0,0.00019467,2]
[353494122,1739881844912,-150.0,0.00019827,2]
[353494124,1739881844922,-172.71276252,0.00020073,2]
[353494126,1739881844931,-27.28723748,0.00020173,40]
[353494128,1739881844942,-1802.48772595,0.00020173,40]
[353494130,1739881844953,-1067.6047624,0.00020173,40]
[353494133,1739881844965,-1212.31969553,0.00020173,40]
[353494135,1739881844976,-831.48450349,0.00020173,40]
[353494137,1739881844987,-68688.42908962,0.00020173,40]
[353494139,1739881844998,-1989.40049298,0.00020173,40]
[353494141,1739881845009,-838624.54776696,0.00020173,40]
[353494143,1739881845021,-2901.18779003,0.00020173,40]
[353494146,1739881845032,-370.81769919,0.00020173,40]
[353494148,1739881845043,-1109.92285695,0.00020173,40]
[353494150,1739881845055,-6246.50973598,0.00020173,40]
[353494152,1739881845066,-6017.90423162,0.00020173,40]
[353494154,1739881845082,-493.78492319,0.00020173,40]
[353494157,1739881845093,-1861.58900001,0.00020173,40]
[353494159,1739881845104,-2060.67557536,0.00020173,40]
[353494161,1739881845115,-1594.16470055,0.00020173,40]
[353494201,1739881845477,-1008.19796923,0.000136,2]
[353494203,1739881845487,-1075.0,0.00020173,2]
[353494205,1739881845496,-616.60621884,0.00020173,40]
[353494207,1739881845508,-3118.69337497,0.00020173,40]
[353494210,1739881845519,-411.87343716,0.00020173,40]
[353494212,1739881845530,-631.44788708,0.00020173,40]
[353494214,1739881845542,-346601.58106493,0.00020173,40]
[353494216,1739881845553,-18705.482181,0.00020173,40]
[353494218,1739881845565,-14593.07056593,0.00020173,40]
[353494220,1739881845577,-312.76805232,0.00020173,40]
[353494223,1739881845587,-10988.25547389,0.00020173,40]
[353494226,1739881845607,-2014.52,0.00020173,40]
[353494233,1739881845667,-8849.41203992,0.00020173,40]
[353494240,1739881845727,-16953.31644989,0.00020173,40]
[353494243,1739881845739,-2783.2,0.00020173,40]
[353494245,1739881845750,-511.0,0.00020173,40]
[353494250,1739881845788,-939.95000075,0.00020173,40]
[353494252,1739881845799,-433.97561987,0.00020173,40]
[353494254,1739881845811,-508.1826822,0.00020173,40]
[353494256,1739881845822,-588.94,0.00020173,40]
[353494303,1739882117102,1861.7678498,1e-05,2]
[353494328,1739883031824,-378.84,0.00011705,2]
[353494329,1739883031834,-150.0,0.00013044,2]
[353494330,1739883031843,-1000.0,0.00013446,2]
[353494331,1739883031852,-200.0,0.00013622,2]
[353494332,1739883031861,-500.0,0.00013698,2]
[353494333,1739883031870,-500.0,0.00013698,2]
[353494334,1739883031879,-500.0,0.00013698,2]
[353494335,1739883031889,-500.0,0.00013698,2]
[353494336,1739883031898,-500.0,0.00013698,2]
[353494337,1739883031907,-500.0,0.00013698,2]
[353494338,1739883031916,-500.0,0.00013698,2]
[353494339,1739883031926,-179.12,0.00013698,2]
[353494340,1739883031935,-318.29,0.00013698,2]
[353494341,1739883031945,-505.4168352,0.00013698,2]
[353494342,1739883031955,-500.0,0.00013698,2]
[353494343,1739883031964,-500.0,0.00013698,2]
[353494344,1739883031973,-500.0,0.00013698,2]
[353494345,1739883031983,-500.0,0.00013698,2]
[353494346,1739883031992,-500.0,0.00013698,2]
[353494347,1739883032001,-502.23216969,0.00013698,2]
[353494348,1739883032010,-500.0,0.00013698,2]
[353494349,1739883032020,-500.0,0.00013698,2]
[353494350,1739883032029,-266.19186025,0.00013698,2]
[353494351,1739883032041,-233.80813975,0.00013698,2]
[353494352,1739883032051,-500.0,0.00013698,2]
[353494353,1739883032060,-500.0,0.00013698,2]
[353494354,1739883032070,-500.0,0.00013698,2]
[353494355,1739883032079,-500.0,0.00013698,2]
[353494356,1739883032088,-357.53590221,0.00013698,2]
[353494357,1739883032100,-142.46409779,0.00013698,2]
[353494358,1739883032109,-400.98441129,0.00013698,2]
[353494359,1739883032118,-500.0,0.00013698,2]
[353494360,1739883032128,-481.94952308,0.00013698,2]
[353494361,1739883032138,-500.0,0.00013698,2]
[353494362,1739883032147,-500.0,0.00013698,2]
[353494363,1739883032157,-500.0,0.00013698,2]
[353494364,1739883032167,-500.0,0.00013698,2]
[353494365,1739883032177,-500.0,0.00013698,2]
[353494366,1739883032366,-501.83688216,0.00013698,2]
[353494367,1739883032376,-500.0,0.00013698,2]
[353494368,1739883032387,-500.0,0.00013698,2]
[353494369,1739883032397,-512.03497736,0.00013698,2]
[353494370,1739883032407,-500.0,0.00013698,2]
[353494371,1739883032417,-503.36174568,0.00013698,2]
[353494372,1739883032427,-259.67784432,0.00013698,2]
[353494373,1739883032437,-500.0,0.00013698,2]
[353494374,1739883032447,-500.0,0.00013698,2]
[353494375,1739883032457,-500.0,0.00013698,2]
[353494376,1739883032467,-500.0,0.00013698,2]
[353494377,1739883032478,-500.0,0.00013698,2]
[353494378,1739883032491,-500.0,0.00013698,2]
[353494379,1739883032501,-500.0,0.00013698,2]
[353494380,1739883032511,-500.0,0.00013698,2]
[353494381,1739883032521,-500.0,0.00013698,2]
[353494382,1739883032531,-500.0,0.00013698,2]
[353494383,1739883032541,-500.0,0.00013698,2]
[353494384,1739883032551,-500.0,0.00013698,2]
[353494385,1739883032563,-500.0,0.00013698,2]
[353494386,1739883032573,-500.0,0.00013698,2]
[353494387,1739883032583,-193.78267535,0.00013698,2]
[353494388,1739883032593,-513.22353374,0.00013698,2]
[353494389,1739883032602,-494.98363924,0.00013698,2]
[353494390,1739883032611,-500.0,0.00013698,2]
[353494391,1739883032621,-500.0,0.00013698,2]
[353494392,1739883032631,-211.617827,0.00013698,2]
[353494393,1739883032640,-159.282857,0.00013698,2]
[353494394,1739883032650,-2183.9654,0.00013698,2]
[353494395,1739883032660,-578.43,0.0001378,2]
[353494396,1739883032670,-294.93,0.0001378,2]
[353494397,1739883032680,-150.0,0.000138,2]
[353494398,1739883032690,-378.84,0.00013969,2]
[353494399,1739883032699,-211.617827,0.00014191,2]
[353494400,1739883032709,-504.12052031,0.000143,2]
[353494401,1739883032718,-2655.86013221,0.00014399,2]
[353494402,1739883032730,-10755.63809126,0.00014399,2]
[353494403,1739883032740,-18783.78712474,0.000144,2]
[353494404,1739883032756,-989.24116447,0.000144,2]
[353494405,1739883032768,-1308.3,0.000144,2]
[353494526,1739883037751,-1196.73651874,0.000144,2]
[353494533,1739883037810,-1006.31984944,0.000144,2]
[353494540,1739883037866,-32270.61534261,0.000144,2]
[353494542,1739883037875,-957.78807074,0.000144,2]
[353494544,1739883037884,-957.78807065,0.00014404,2]
[353494546,1739883037894,-957.78807065,0.00014409,2]
[353494548,1739883037904,-957.78807065,0.00014413,2]
[353494550,1739883037913,-957.78807065,0.00014417,2]
[353494552,1739883037922,-957.78807065,0.00014421,2]
[353494554,1739883037931,-957.78807065,0.00014426,2]
[353494555,1739883037940,-957.78807065,0.0001443,2]
[353494556,1739883037948,-957.78807065,0.00014434,2]
[353494557,1739883037957,-1722.0,0.00014436,2]
[353494558,1739883037966,-957.78807065,0.00014438,2]
[353494559,1739883037975,-957.78807065,0.00014443,2]
[353494560,1739883037984,-957.78807065,0.00014447,2]
[353494561,1739883037992,-957.78807065,0.00014451,2]
[353494562,1739883038001,-957.78807065,0.00014455,2]
[353494563,1739883038009,-957.78807065,0.0001446,2]
[353494564,1739883038018,-957.78807065,0.00014464,2]
[353494566,1739883038027,-957.78807065,0.00014468,2]
[353494568,1739883038037,-957.78807065,0.00014472,2]
[353494570,1739883038046,-957.78807065,0.00014477,2]
[353494572,1739883038055,-957.78807065,0.00014481,2]
[353494573,1739883038064,-2925.69989762,0.00014481,2]
[353494575,1739883038073,-214.50967806,0.0001449,2]
[353494577,1739883038083,-214.50967806,0.0001449,2]
[353494579,1739883038092,-214.50967806,0.0001449,2]
[353494581,1739883038101,-206.0946564,0.00014499,2]
[353494583,1739883038110,-500.0,0.00014499,2]
[353494585,1739883038119,-500.0,0.00014499,2]
[353494587,1739883038128,-500.0,0.00014499,2]
[353494589,1739883038138,-500.0,0.00014499,2]
[353494591,1739883038147,-500.0,0.00014499,2]
[353494593,1739883038156,-500.0,0.00014499,2]
[353494595,1739883038166,-500.0,0.00014499,2]
[353494597,1739883038175,-510.8334447,0.00014499,2]
[353494599,1739883038184,-500.0,0.00014499,2]
[353494601,1739883038193,-500.0,0.00014499,2]
[353494603,1739883038203,-500.0,0.00014499,2]
[353494605,1739883038212,-500.0,0.00014499,2]
[353494607,1739883038221,-500.0,0.00014499,2]
[353494609,1739883038231,-500.0,0.00014499,2]
[353494611,1739883038240,-500.0,0.00014499,2]
[353494613,1739883038249,-500.0,0.00014499,2]
[353494615,1739883038258,-500.0,0.00014499,2]
[353494617,1739883038267,-500.0,0.00014499,2]
[353494619,1739883038276,-331.16115064,0.00014499,2]
[353494621,1739883038285,-500.0,0.00014499,2]
[353494623,1739883038294,-500.0,0.00014499,2]
[353494625,1739883038304,-500.0,0.00014499,2]
[353494627,1739883038314,-494.0,0.00014499,2]
[353494630,1739883038323,-500.0,0.00014499,2]
[353494632,1739883038333,-500.0,0.00014499,2]
[353494634,1739883038344,-500.0,0.00014499,2]
[353494635,1739883038353,-500.0,0.00014499,2]
[353494638,1739883038362,-500.0,0.00014499,2]
[353494641,1739883038371,-500.0,0.00014499,2]
[353494643,1739883038380,-500.0,0.00014499,2]
[353494645,1739883038388,-500.0,0.00014499,2]
[353494647,1739883038397,-500.0,0.00014499,2]
[353494649,1739883038406,-488.47929348,0.00014499,2]
[353494651,1739883038415,-500.0,0.00014499,2]
[353494653,1739883038424,-415.04001485,0.00014499,2]
[353494655,1739883038433,-500.0,0.00014499,2]
[353494657,1739883038442,-500.0,0.00014499,2]
[353494659,1739883038451,-508.55092662,0.00014499,2]
[353494661,1739883038460,-500.0,0.00014499,2]
[353494663,1739883038470,-500.0,0.00014499,2]
[353494665,1739883038479,-502.89110271,0.00014499,2]
[353494667,1739883038491,-502.43570882,0.00014499,2]
[353494669,1739883038500,-502.05189245,0.00014499,2]
[353494671,1739883038509,-500.0,0.00014499,2]
[353494673,1739883038518,-500.0,0.00014499,2]
[353494675,1739883038528,-500.0,0.00014499,2]
[353494677,1739883038538,-500.0,0.00014499,2]
[353494679,1739883038547,-500.0,0.00014499,2]
[353494681,1739883038556,-501.9921317,0.00014499,2]
[353494683,1739883038565,-500.0,0.00014499,2]
[353494685,1739883038574,-500.0,0.00014499,2]
[353494687,1739883038583,-500.0,0.00014499,2]
[353494689,1739883038593,-352.06667053,0.00014499,2]
[353494690,1739883038602,-500.0,0.00014499,2]
[353494692,1739883038611,-22933.30888907,0.000145,3]
[353494695,1739883038624,-9641.93042146,0.000145,3]
[353494697,1739883038635,-578.75100938,0.000145,3]
[353494699,1739883038647,-1746.24472117,0.000145,3]
[353494702,1739883038659,-6408.60065478,0.000145,3]
[353494704,1739883038668,-4953666.37356373,0.000145,5]
[353494828,1739883039834,-253.08870398,0.00014499,2]
[353494847,1739883040003,-246.91129602,0.00014499,2]
[353494848,1739883040012,-157.07485068,0.000145,5]
[353494870,1739883040274,-100610.90323485,0.000145,5]
[353495100,1739883042973,-2000.0,0.000145,5]
[353495101,1739883042985,-1457.86285409,0.000145,5]
[353495102,1739883042996,-709.00241687,0.000145,5]
[353495103,1739883043008,-455.37695136,0.000145,5]
[353495113,1739883045663,-685.11803087,0.000144,2]
[353495114,1739883045674,-637.09999982,0.000144,2]
[353495115,1739883045780,-26558.78186931,0.000144,2]
[353495116,1739883045790,-69430.24100207,0.000145,5]
[353495117,1739883045894,-919.45000025,0.000145,5]
[353495909,1739883163609,-153.78,0.000149,31]
[353495910,1739883163637,-153.78,0.000149,31]
[353495911,1739883163663,-153.78,0.000149,31]
[353495912,1739883163687,-153.78,0.000149,31]
[353495913,1739883163711,-153.78,0.000149,31]
[353495914,1739883163735,-153.78,0.000149,31]
[353495915,1739883163758,-153.78,0.000149,31]
[353495916,1739883163781,-153.78,0.000149,31]
[353495917,1739883163805,-153.78,0.000149,31]
[353495918,1739883163830,-153.78,0.000149,31]
[353495919,1739883163853,-153.78,0.000149,31]
[353495920,1739883403577,153.79,0.000149,31]
[353495921,1739883403638,153.79,0.000149,31]
[353495922,1739883403707,153.79,0.000149,31]
[353495923,1739883403750,153.79,0.000149,31]
[353495924,1739883403813,153.79,0.000149,31]
[353495925,1739883403877,153.79,0.000149,31]
[353495926,1739883403932,153.79,0.000149,31]
[353495927,1739883403991,153.79,0.000149,31]
[353495928,1739883404096,153.79,0.000149,31]
[353495929,1739883404162,153.79,0.000149,31]
[353495930,1739883404226,153.79,0.000149,31]
[353495931,1739883404287,153.79,0.000149,31]
[353495932,1739883404351,153.79,0.000149,31]
[353495933,1739883404408,153.79,0.000149,31]
[353495935,1739883613864,-500.0,0.00014664,13]
[353495936,1739883613887,-158.0,0.00014664,13]
[353495937,1739883635032,-2208.0,0.000119,5]
[353495938,1739883647528,-200.0,0.00012721,2]
[353495939,1739883661254,-200.0,0.0001312,2]
[353495940,1739883661276,-243.96,0.00013155,2]
[353495941,1739883661299,-199.24,0.00013238,2]
[353495942,1739883661322,-2918.83195824,0.00013242,2]
[353495943,1739883661347,-1984.33,0.00013242,2]
[353495944,1739883661369,-500.0,0.0001332,2]
[353495945,1739883661391,-768.92,0.0001339,2]
[353495946,1739883661414,-200.0,0.0001342,2]
[353495947,1739883661436,-14602.58,0.00013601,2]
[353495948,1739883661459,-151.430192,0.00013698,2]
[353495949,1739883661481,-151.430192,0.00013698,2]
[353495950,1739883661503,-151.430192,0.00013698,2]
[353495951,1739883661524,-150.0,0.00013699,2]
[353495952,1739883661546,-151.430192,0.0001378,2]
[353495953,1739883661570,-151.430192,0.0001378,2]
[353495954,1739883661594,-201.54,0.000138,2]
[353495955,1739883661617,-151.430192,0.00013863,2]
[353495956,1739883661639,-151.430192,0.00013945,2]
[353495957,1739883661661,-151.430192,0.00014027,2]
[353495958,1739883661683,-150.0,0.00014059,2]
[353495959,1739883661706,-151.430192,0.00014109,2]
[353495960,1739883661729,-151.430192,0.00014191,2]
[353495961,1739883661751,-406.69797652,0.00014264,2]
[353495962,1739883661777,-151.430192,0.00014273,2]
[353495963,1739883661799,-515.12074,0.00014299,2]
[353495964,1739883661823,-150.0,0.00014299,2]
[353495965,1739883661846,-150.0,0.0001433,2]
[353495966,1739883661868,-3917.0,0.0001433,2]
[353495967,1739883661890,-1008.0,0.0001433,2]
[353495968,1739883661913,-1274.0,0.0001433,2]
[353495969,1739883661935,-150.0,0.0001433,2]
[353495970,1739883661957,-1109.0,0.0001433,2]
[353495971,1739883661979,-151.0,0.0001433,2]
[353495972,1739883662002,-569.0,0.0001433,2]
[353495973,1739883662024,-639.0,0.0001433,2]
[353495974,1739883662046,-151.430192,0.00014356,2]
[353495975,1739883662069,-1058.3721,0.00014399,2]
[353495976,1739883662091,-16213.6781,0.00014399,2]
[353495977,1739883662113,-2911.7662,0.00014399,2]
[353495978,1739883662134,-298.801,0.00014399,2]
[353495979,1739883662156,-5616.6311,0.00014399,2]
[353495980,1739883662178,-501.8986,0.00014399,2]
[353495981,1739883662199,-669.9253,0.000144,2]
[353495982,1739883662220,-10871.4796,0.000144,2]
[353495983,1739883662241,-5000.0,0.000144,2]
[353495984,1739883662262,-55555.0,0.000144,2]
[353495985,1739883662286,-1000.0,0.000144,2]
[353495986,1739883662308,-2500.0,0.000144,2]
[353495987,1739883662330,-36013.8125,0.000144,2]
[353495988,1739883662356,-150.0,0.0001442,2]
[353495989,1739883662380,-1708.0,0.00014436,2]
[353495990,1739883662404,-151.430192,0.00014438,2]
[353495991,1739883662432,-261.88426196,0.00014481,2]
[353495992,1739883662455,-500.0,0.00014498,2]
[353495993,1739883662479,-606.36,0.00014498,2]
[353495994,1739883662502,-255.91566008,0.00014498,2]
[353495995,1739883662526,-601.72,0.00014498,2]
[353495996,1739883662551,-395.28089875,0.00014498,2]
[353495997,1739883662575,-116.66150845,0.00014498,2]